bitfinex-derivatives/quotes_ETHF0:USTF0_20251013
["timestamp","ask_amount","ask_price","bid_price","bid_amount"]
[1760317649936,3.2078,4136.2,4136.1,0.4348]
[1760317650132,3.2078,4136.2,4136.1,0.9637]
[1760317650334,3.2078,4137.1,4136.1,3.7367]
[1760317650539,3.2078,4137.1,4137.0,0.5289]
[1760317650832,0.00187082,4137.5,4136.8,3.2078]
[1760317650833,3.11249091,4137.4,4136.8,3.2078]
[1760317651040,0.5324,4136.9,4136.1,3.64259]
[1760317651238,3.2078,4136.5,4135.5,3.2078]
[1760317651432,0.43477,4136.3,4135.5,3.2078]
[1760317651632,0.43477,4136.3,4135.2,0.77373783]
[1760317651633,3.07672232,4136.4,4136.3,0.43477]
[1760317651929,3.2078,4136.5,4136.3,0.96367]
[1760317652132,3.2078,4136.5,4135.4,1.08716]
[1760317652133,0.43483,4135.8,4135.4,3.2078]
[1760317652440,0.96728,4135.3,4135.2,0.24483783]
[1760317652737,4.15022183,4135.3,4135.2,0.00301448]
[1760317652937,4.15022183,4135.3,4134.0,0.5289]
[1760317652938,3.18294183,4135.3,4134.0,0.5289]
[1760317653139,3.2078,4134.9,4133.9,3.2078]
[1760317653338,0.9674,4134.2,4133.9,3.2078]
[1760317653539,0.5324,4134.2,4133.9,3.2078]
[1760317653836,0.00199444,4134.2,4134.0,0.96392]
[1760317654133,0.00199444,4134.2,4133.9,3.20982459]
[1760317654440,0.5324,4134.0,4133.9,3.20982459]
[1760317654641,0.00199444,4134.2,4134.0,0.5289]
[1760317654844,4.12845418,4134.0,4133.9,3.20982459]
[1760317655142,0.96742,4134.0,4133.9,3.20982459]
[1760317655337,4.12845418,4134.0,4133.9,3.20982459]
[1760317655538,3.59605418,4134.0,4133.9,3.20982459]
[1760317655838,0.00199444,4134.2,4133.9,4.17375459]
[1760317656344,0.00199444,4134.2,4134.1,0.96391]
[1760317656734,1.08703,4136.0,4133.9,3.20982459]
[1760317656735,0.5324,4136.1,4134.9,0.5289]
[1760317656933,3.2078,4136.2,4135.3,0.5289]
[1760317657138,3.11651844,4135.9,4135.3,0.5289]
[1760317657341,3.2078,4136.2,4135.3,0.5289]
[1760317657645,3.21020376,4136.2,4136.1,0.9637]
[1760317657844,0.00240376,4136.2,4136.1,0.9637]
[1760317658246,0.5324,4136.1,4135.7,3.64264]
[1760317658437,3.09296998,4136.2,4135.8,0.96372]
[1760317658636,0.00240376,4136.2,4135.7,3.2078]
[1760317658840,0.43486,4135.5,4135.0,0.4349]
[1760317659055,0.43484,4135.7,4135.1,0.43489]
[1760317659250,3.08369058,4135.4,4135.3,3.7367]
[1760317659546,0.96727,4135.5,4135.3,3.2078]
[1760317659746,0.5324,4135.5,4135.3,3.2078]
[1760317659939,3.10997831,4135.4,4135.3,3.2078]
[1760317660645,0.5324,4136.1,4135.3,3.2078]
[1760317660942,0.00240376,4136.2,4136.1,0.5289]
[1760317661647,0.5324,4137.5,4136.6,0.43474]
[1760317661840,0.5324,4137.0,4135.9,3.2078]
[1760317662046,0.5324,4137.0,4135.5,0.5289]
[1760317662047,0.5324,4136.0,4135.5,0.43485]
[1760317662341,1.70536219,4136.9,4134.8,3.2078]
[1760317662342,0.43491,4135.0,4134.8,3.2078]
[1760317662546,0.43497,4134.5,4134.2,3.2078]
[1760317662843,3.20726682,4134.9,4134.2,3.2078]
[1760317663049,0.96733,4134.8,4134.2,3.2078]
[1760317663244,6.41506682,4134.9,4134.2,3.2078]
[1760317663548,0.43497,4134.5,4133.9,0.43704459]
[1760317663744,0.43498,4134.4,4133.9,0.43704459]
[1760317663945,3.14289126,4134.4,4134.0,0.5353]
[1760317664151,0.5362,4134.0,4133.9,0.00202459]
[1760317664653,3.67909126,4134.0,4133.9,0.00202459]
[1760317665254,3.2078,4134.4,4134.0,0.43502]
[1760317665554,3.1556115,4134.3,4133.9,0.53732459]
[1760317666450,3.1556115,4134.3,4133.9,0.00202459]
[1760317666650,3.1556115,4134.3,4134.1,0.9703]
[1760317666846,3.1556115,4134.3,4134.2,0.5353]
[1760317667046,3.2078,4134.4,4134.3,0.97029]
[1760317667547,0.5362,4135.3,4134.3,0.97029]
[1760317667548,3.2078,4135.1,4134.8,0.43493]
[1760317667754,3.2078,4135.7,4134.9,0.5353]
[1760317667947,0.5362,4136.0,4134.9,0.5353]
[1760317668148,0.5362,4136.0,4134.9,0.745]
[1760317668351,3.2078,4136.2,4134.9,1.83231]
[1760317668551,3.2078,4136.7,4136.5,0.43475]
[1760317668751,0.5362,4137.3,4136.6,0.43474]
[1760317668959,0.1892,4137.7,4136.2,0.43478]
[1760317668960,3.19705345,4136.6,4136.2,0.43478]
[1760317669156,3.2078,4136.8,4136.3,0.43477]
[1760317669451,0.43481,4136.0,4135.8,3.2078]
[1760317669658,0.43483,4135.8,4135.3,3.2078]
[1760317669851,3.15861892,4135.9,4135.4,0.43486]
[1760317670052,3.15861892,4135.7,4135.4,0.43486]
[1760317670250,3.15861892,4136.1,4135.3,3.2078]
[1760317670449,3.2078,4136.7,4135.4,0.5353]
[1760317670646,0.00234034,4136.8,4136.7,0.5353]
[1760317671159,0.00234034,4136.8,4136.6,0.43474]
[1760317671363,0.00234034,4136.8,4136.7,0.5353]
[1760317672066,1.08617,4139.3,4138.0,0.43459]
[1760317672067,3.2078,4138.4,4138.0,0.43459]
[1760317672245,3.2078,4138.4,4137.7,3.2078]
[1760317672445,3.2078,4138.4,4138.3,0.5222]
[1760317672647,3.2078,4138.4,4138.2,0.43457]
[1760317672853,3.2078,4138.4,4138.2,0.95677]
[1760317673051,3.21061265,4138.4,4138.3,0.5222]
[1760317673253,0.00281265,4138.4,4138.3,0.5222]
[1760317674154,0.00281265,4138.4,4138.2,3.64422444]
[1760317674355,0.00281265,4138.4,4138.3,0.5222]
[1760317674654,0.00281265,4138.4,4138.2,3.64422444]
[1760317674655,0.00281265,4138.4,4138.2,3.20965444]
[1760317675055,3.74970869,4138.3,4138.2,0.00185444]
[1760317675760,3.20660869,4138.3,4138.2,0.00185444]
[1760317675954,3.21061265,4138.4,4138.2,0.00185444]
[1760317675955,0.00281265,4138.4,4138.3,0.5222]
[1760317676259,3.2078,4139.1,4138.4,0.2108]
[1760317676460,3.2078,4139.1,4138.5,0.5222]
[1760317676958,3.2078,4139.7,4139.4,0.5222]
[1760317677156,3.2078,4139.7,4138.7,0.5222]
[1760317677456,3.19599058,4139.6,4138.7,0.5222]
[1760317677660,0.43448,4139.2,4138.6,3.64233]
[1760317677851,3.2078,4139.1,4138.6,3.2078]
[1760317678048,0.43452,4138.8,4138.3,0.43456]
[1760317678255,0.97762,4138.8,4138.3,0.43456]
[1760317678455,3.08756167,4138.7,4138.4,0.43455]
[1760317678655,3.08756167,4138.7,4138.2,0.43642444]
[1760317678857,3.08756167,4138.7,4138.3,0.95676]
[1760317679062,3.08756167,4138.7,4138.4,0.43455]
[1760317679361,3.52209167,4138.7,4138.3,0.5222]
[1760317679549,3.2078,4139.1,4138.3,0.5222]
[1760317679756,0.5431,4139.6,4138.6,3.2078]
[1760317680058,3.50554698,4139.0,4138.7,0.5222]
[1760317680362,3.07104698,4139.5,4138.2,0.00185444]
[1760317680363,0.97766,4138.3,4138.2,0.00185444]
[1760317680563,0.97766,4138.3,4137.4,3.2078]
[1760317680564,0.43465,4137.5,4137.4,3.2078]
[1760317680855,0.43465,4137.5,4136.3,0.2108]
[1760317680856,3.15281689,4137.5,4137.3,3.2078]
[1760317681060,3.15281689,4137.5,4137.4,0.5222]
[1760317681254,3.64236,4138.4,4137.4,0.5222]
[1760317681454,3.414,4138.4,4137.3,3.2078]
[1760317681653,3.2078,4137.9,4137.5,0.43465]
[1760317681858,3.2078,4137.9,4137.3,0.00298952]
[1760317682163,0.5431,4137.7,4137.3,0.00298952]
[1760317682362,0.5431,4137.4,4137.3,0.00298952]
[1760317682551,3.7509,4137.4,4137.3,0.00298952]
[1760317682751,6.91198903,4137.4,4137.3,0.00298952]
[1760317683156,6.36888903,4137.4,4137.3,0.00298952]
[1760317683461,3.59574903,4137.4,4137.3,0.00298952]
[1760317683659,0.5431,4136.9,4136.3,3.64257]
[1760317684056,3.18776886,4136.8,4136.3,3.2078]
[1760317684260,0.43473,4136.7,4136.3,3.2078]
[1760317684460,3.7509,4137.0,4136.3,3.9408]
[1760317684461,3.18776886,4136.9,4136.3,3.9408]
[1760317684655,0.00248754,4136.9,4136.8,3.73]
[1760317685061,0.43458,4138.2,4137.1,0.5222]
[1760317685260,3.2078,4138.4,4136.7,1.08684]
[1760317685261,3.414,4138.4,4136.7,3.2078]
[1760317685458,3.62625956,4137.6,4137.0,0.4347]
[1760317685763,4.18546,4138.4,4137.9,0.43461]
[1760317686061,0.00213116,4138.4,4138.3,0.5222]
[1760317686261,3.14067406,4138.3,4137.5,3.73]
[1760317686452,0.43464,4137.7,4137.1,0.43469]
[1760317686657,0.43466,4137.5,4136.9,0.9569]
[1760317686853,3.14067406,4137.6,4136.9,0.95691]
[1760317687072,0.5431,4137.9,4136.8,3.2078]
[1760317687073,3.52453835,4137.4,4137.0,0.95689]
[1760317687254,0.43467,4137.4,4136.8,4.16472]
[1760317687457,3.2078,4138.0,4137.4,0.43465]
[1760317687654,0.43459,4138.1,4137.6,0.43463]
[1760317687868,0.43459,4138.1,4137.6,0.95683]
[1760317688061,3.52026391,4138.0,4137.6,0.95683]
[1760317688259,0.00213116,4138.4,4138.0,0.5222]
[1760317688455,0.00213116,4138.4,4138.3,0.5222]
[1760317688767,0.00213116,4138.4,4137.9,3.2078]
[1760317689061,0.5431,4138.0,4137.9,3.2078]
[1760317689263,0.97773,4137.7,4137.4,3.2078]
[1760317689461,3.06969696,4138.3,4137.4,3.2078]
[1760317689462,3.50429696,4138.0,4137.4,3.2078]
[1760317689671,0.54523116,4138.4,4137.9,0.5222]
[1760317689861,0.43463,4137.7,4137.4,3.2078]
[1760317690058,0.5431,4137.6,4137.4,3.2078]
[1760317690257,3.14628991,4137.6,4137.4,3.2078]
[1760317690460,0.00213116,4138.4,4137.5,0.5222]
[1760317690663,0.00213116,4138.4,4137.5,3.73]
[1760317690869,0.00213116,4138.4,4137.8,0.43461]
[1760317690870,0.43459,4138.1,4137.8,0.43461]
[1760317691561,0.43459,4138.1,4137.6,0.95683]
[1760317691766,6.76179625,4138.3,4137.6,0.5222]
[1760317691968,6.32722625,4138.3,4137.6,0.733]
[1760317692366,0.00213116,4138.4,4138.3,0.43456]
[1760317692573,0.00213116,4138.4,4138.3,0.95676]
[1760317692769,3.2078,4139.5,4139.3,0.43445]
[1760317693075,0.43439,4140.0,4139.6,0.43442]
[1760317693275,40.8,4139.9,4139.8,0.43441]
[1760317693566,43.97577172,4139.9,4138.9,3.2078]
[1760317693772,0.5431,4139.6,4138.9,0.0022261]
[1760317694071,0.5431,4139.0,4138.9,0.0022261]
[1760317694468,3.65941483,4139.0,4138.9,0.0022261]
[1760317695167,6.86721483,4139.0,4138.9,0.0022261]
[1760317695369,0.97767,4138.3,4137.4,3.2078]
[1760317695568,0.97767,4138.3,4137.8,0.43461]
[1760317695773,2.86196117,4138.2,4138.1,0.5222]
[1760317695966,0.5431,4139.7,4139.4,0.43444]
[1760317696168,0.2135,4139.8,4139.5,0.43443]
[1760317696365,0.2135,4139.8,4139.5,0.4362124]
[1760317696664,0.00282723,4139.9,4139.7,0.43442]
[1760317697362,0.43429,4141.0,4140.4,0.43434]
[1760317697667,0.5431,4140.8,4140.6,0.43432]
[1760317697864,0.5431,4140.8,4140.7,0.43431]
[1760317698066,3.16240661,4141.0,4140.9,0.43429]
[1760317698272,0.00208873,4141.0,4140.9,0.43429]
[1760317698569,0.54518873,4141.0,4140.2,3.2078]
[1760317698872,3.16449534,4141.0,4140.9,0.43429]
[1760317699069,0.00208873,4141.0,4140.9,0.43429]
[1760317699261,0.5431,4142.2,4140.9,1.08573]
[1760317699467,0.5431,4142.2,4142.0,0.43417]
[1760317699760,40.8,4143.1,4141.0,1.08571]
[1760317699761,3.2078,4142.8,4142.5,0.43412]
[1760317699959,3.2078,4142.8,4142.6,0.4341]
[1760317700160,3.2078,4142.8,4142.1,3.2078]
[1760317700161,0.5431,4143.1,4142.8,0.43409]
[1760317700376,0.54623819,4143.1,4142.8,0.43604876]
[1760317700665,0.54623819,4143.1,4142.8,0.00195876]
[1760317700666,0.5431,4143.0,4142.8,0.00195876]
[1760317700865,0.00313819,4143.1,4142.8,0.00195876]
[1760317700866,0.00313819,4143.1,4142.9,0.43408]
[1760317702173,0.5567,4144.2,4142.8,0.00195876]
[1760317702373,0.5567,4144.2,4143.6,3.2078]
[1760317702576,0.5567,4143.9,4143.6,3.2078]
[1760317702774,0.2149,4144.0,4143.6,3.2078]
[1760317703075,0.21765957,4144.0,4143.6,3.2078]
[1760317703268,0.00275957,4144.0,4143.6,3.2078]
[1760317703577,0.5567,4143.9,4143.6,3.64181]
[1760317703778,0.00275957,4144.0,4143.8,0.43399]
[1760317704973,0.5567,4143.8,4143.2,3.2078]
[1760317705176,3.17239532,4143.9,4143.7,3.2078]
[1760317705368,0.21765957,4144.0,4143.7,3.2078]
[1760317705369,0.00275957,4144.0,4143.7,3.2078]
[1760317705573,0.00275957,4144.0,4143.8,0.43398]
[1760317705767,0.43378,4145.8,4144.8,0.43388]
[1760317706081,0.5567,4145.9,4145.2,3.64164]
[1760317706275,3.2078,4146.7,4145.7,0.43379]
[1760317706276,0.43369,4146.6,4145.7,0.43379]
[1760317706473,0.5567,4146.7,4145.8,3.2078]
[1760317706875,3.09032847,4146.6,4145.8,3.64348689]
[1760317707071,0.43372,4146.4,4145.8,3.20971689]
[1760317707376,3.7645,4145.9,4145.8,0.00191689]
[1760317708682,6.86750737,4145.9,4145.8,0.00191689]
[1760317711281,0.5567,4144.4,4144.3,3.2078]
[1760317711485,0.5567,4143.9,4143.8,3.2078]
[1760317711684,3.2078,4144.8,4144.0,0.43396]
[1760317711685,0.43389,4144.8,4144.0,0.43396]
[1760317711882,0.4339,4144.7,4144.4,3.2078]
[1760317712084,0.43393,4144.4,4143.9,3.2078]
[1760317712383,0.99064,4144.3,4143.9,3.21047947]
[1760317712582,0.99067,4144.0,4143.9,3.21047947]
[1760317712783,0.5567,4144.0,4143.9,3.21047947]
[1760317712981,3.19716691,4145.0,4144.4,0.43392]
[1760317713183,1.29929,4146.1,4144.7,3.2078]
[1760317713184,0.5567,4145.9,4144.7,3.2078]
[1760317713380,0.2149,4146.1,4144.8,3.2078]
[1760317713381,0.43384,4145.3,4144.8,3.2078]
[1760317713580,0.5567,4144.9,4144.8,3.2078]
[1760317714073,1.08441,4146.0,4144.8,3.2078]
[1760317714074,3.9794,4146.1,4144.8,3.2078]
[1760317714279,3.4227,4146.1,4145.7,0.43379]
[1760317714485,3.2078,4146.1,4145.7,0.43379]
[1760317714685,4.19825,4146.1,4145.7,0.43379]
[1760317714885,0.5567,4146.0,4145.7,0.43379]
[1760317715082,3.4227,4146.1,4145.3,3.2078]
[1760317715588,0.43376,4146.0,4145.5,0.4338]
[1760317715788,0.99048,4145.9,4145.5,0.4338]
[1760317716484,0.5567,4145.9,4145.6,0.43379]
[1760317717189,0.43374,4146.2,4145.8,3.2078]
[1760317717596,0.43375,4146.1,4145.8,3.2078]
[1760317717793,0.5567,4145.9,4145.3,3.2078]
[1760317718092,3.76725899,4146.7,4145.8,3.2078]
[1760317718279,0.99042,4146.4,4145.9,0.43376]
[1760317718484,0.00275899,4146.7,4146.4,0.43371]
[1760317718685,0.00275899,4146.7,4146.5,0.4337]
[1760317719085,0.5567,4147.9,4146.5,0.4337]
[1760317719291,3.2078,4148.3,4147.3,3.2078]
[1760317719490,0.64843,4148.2,4147.6,0.43358]
[1760317719794,0.5567,4148.1,4147.8,3.2078]
[1760317720189,0.5567,4147.9,4147.8,0.00277165]
[1760317720885,0.5567,4147.9,4145.9,1.0844]
[1760317720886,0.43361,4147.4,4146.7,3.2078]
[1760317721084,3.2078,4147.3,4146.2,3.2078]
[1760317721282,0.43372,4146.4,4146.2,3.2078]
[1760317721479,0.5567,4146.3,4146.2,3.2078]
[1760317721684,0.4337,4146.6,4146.2,3.2078]
[1760317721881,0.43371,4146.5,4146.2,3.21033713]
[1760317722292,0.43366,4147.0,4146.3,0.43373]
[1760317722496,0.5567,4146.7,4146.3,0.43373]
[1760317722994,0.5567,4146.6,4146.2,3.21033713]
[1760317723196,0.5567,4146.3,4146.2,0.00253713]
[1760317725096,3.67470464,4146.3,4146.2,0.00253713]
[1760317725393,0.5567,4146.3,4146.2,0.00253713]
[1760317727597,3.64308703,4146.3,4146.2,0.00253713]
[1760317727892,3.2078,4146.7,4146.2,0.43627713]
[1760317728096,0.5301,4146.6,4146.2,0.00253713]
[1760317728395,0.43366,4147.0,4146.6,0.43369]
[1760317728592,0.5301,4147.6,4146.7,3.2078]
[1760317728899,0.53279174,4148.1,4147.2,3.2078]
[1760317729092,0.5301,4148.0,4147.2,3.2078]
[1760317729292,0.5301,4148.0,4147.5,0.43359]
[1760317729491,0.00269174,4148.1,4147.5,0.43359]
[1760317729687,0.00269174,4148.1,4147.2,3.2078]
[1760317729688,0.745,4147.8,4147.2,3.2078]
[1760317729891,0.43362,4147.4,4147.0,3.2078]
[1760317730090,0.5301,4147.1,4147.0,3.2078]
[1760317730394,0.43363,4147.2,4146.2,0.00253713]
[1760317730395,0.5301,4147.2,4146.2,0.00253713]
[1760317730601,0.5301,4146.3,4146.2,0.00253713]
[1760317730793,3.7379,4146.3,4146.2,0.00253713]
[1760317730994,6.80609855,4146.3,4146.2,0.00253713]
[1760317731895,0.4337,4146.6,4146.2,0.00253713]
[1760317732204,0.5424,4146.4,4146.2,0.00253713]
[1760317733195,0.43372,4146.4,4146.2,0.00253713]
[1760317733499,0.5424,4146.3,4146.2,0.00253713]
[1760317733894,3.70182813,4146.3,4146.2,0.00253713]
[1760317734095,0.5424,4146.3,4146.2,3.21033713]
[1760317735204,4.23526282,4146.3,4146.2,0.00253713]
[1760317735400,1.1659834,4146.3,4146.2,0.00253713]
[1760317736392,1.1659834,4146.3,4145.5,3.2078]
[1760317736393,4.2880207,4146.3,4145.5,3.2078]
[1760317736601,0.43383,4145.4,4145.0,3.2078]
[1760317736801,0.5424,4145.1,4145.0,3.2078]
[1760317737498,0.54537876,4145.1,4145.0,3.21080724]
[1760317737801,0.54537876,4145.1,4145.0,0.00300724]
[1760317738202,4.26566343,4145.1,4145.0,0.00300724]
[1760317738598,0.43396,4144.1,4144.0,3.2078]
[1760317738802,0.97636,4144.1,4144.0,3.2078]
[1760317739398,0.97643,4143.5,4143.4,3.2078]
[1760317739805,0.97643,4143.5,4143.4,3.21016864]
[1760317739999,0.5424,4143.5,4143.4,3.21016864]
[1760317740401,0.218,4144.2,4143.4,3.21016864]
[1760317740602,0.5424,4144.1,4143.9,3.2078]
[1760317740804,0.43398,4143.9,4143.4,3.64418864]
[1760317741201,0.5424,4143.8,4143.4,3.64418864]
[1760317741703,0.5424,4143.5,4143.4,0.00236864]
[1760317742303,0.5424,4143.5,4143.4,3.21016864]
[1760317742504,0.218,4143.0,4142.7,3.2078]
[1760317742805,0.43405,4143.3,4142.9,3.2078]
[1760317743004,0.5424,4143.4,4142.9,3.2078]
[1760317743213,0.43408,4142.9,4142.7,3.2078]
[1760317743506,3.11084785,4143.3,4142.7,3.2078]
[1760317743809,0.5424,4144.1,4143.2,3.2078]
[1760317744111,0.5424,4143.5,4143.2,3.2078]
[1760317744301,0.5424,4143.3,4142.7,0.00215837]
[1760317744700,0.5424,4143.1,4142.7,0.00215837]
[1760317744896,0.97648,4142.9,4142.7,0.00215837]
[1760317745095,0.5424,4142.1,4142.0,3.2078]
[1760317745301,0.7604,4141.8,4141.5,3.2078]
[1760317745603,3.2078,4143.1,4141.5,3.2078]
[1760317745809,0.65208,4143.0,4142.5,3.2078]
[1760317746006,0.00239807,4143.0,4142.8,0.43409]
[1760317746305,0.00239807,4143.0,4142.5,3.21089193]
[1760317746704,0.5424,4144.1,4142.8,1.08523]
[1760317746905,0.7604,4144.8,4143.8,3.2078]
[1760317747207,0.43394,4144.3,4143.8,3.2078]
[1760317747504,0.5424,4143.9,4143.8,3.2078]
[1760317747706,0.54474001,4143.9,4143.8,3.2078]
[1760317750406,0.43407,4143.1,4142.6,3.64191]
[1760317750605,0.218,4143.3,4142.6,3.2078]
[1760317750813,0.5424,4142.6,4142.5,0.00309193]
[1760317751811,0.218,4143.3,4142.5,0.00309193]
[1760317752013,0.5424,4143.2,4142.9,0.43408]
[1760317752213,3.75254001,4143.9,4143.3,0.43403]
[1760317752407,0.7604,4143.6,4143.3,0.43403]
[1760317752602,0.5424,4143.5,4143.3,0.43403]
[1760317753110,0.5424,4143.8,4143.4,3.2078]
[1760317753307,0.5424,4143.5,4143.4,3.2078]
[1760317754306,0.4341,4142.8,4142.5,0.00309193]
[1760317754512,3.2078,4143.5,4142.9,0.43407]
[1760317754707,0.5424,4143.8,4143.0,3.2078]
[1760317754916,0.5424,4143.4,4143.0,3.64187]
[1760317755116,0.5424,4143.4,4142.5,3.21089193]
[1760317755117,0.218,4143.0,4142.5,3.21089193]
[1760317755315,0.5424,4142.6,4142.5,0.00309193]
[1760317755610,3.2078,4143.5,4142.5,0.00309193]
[1760317755611,1.19441,4143.6,4142.5,0.00309193]
[1760317755914,0.43632001,4143.9,4143.5,3.2078]
[1760317756506,0.5424,4143.8,4143.5,3.2078]
[1760317756710,0.43632001,4143.9,4143.5,3.2078]
[1760317756913,0.5424,4143.5,4143.0,3.2078]
[1760317757107,0.5424,4142.6,4142.5,0.00309193]
[1760317758012,3.62500947,4142.6,4142.5,0.00309193]
[1760317758211,3.62500947,4142.6,4140.6,1.0858]
[1760317758212,0.218,4142.4,4141.4,3.2078]
[1760317758412,0.5424,4141.5,4141.4,3.2078]
[1760317758608,0.218,4141.8,4140.9,3.2078]
[1760317758816,0.5424,4141.0,4140.9,3.2078]
[1760317759221,0.5452671,4141.0,4140.9,3.21021375]
[1760317759618,0.5452671,4141.0,4140.9,0.00241375]
[1760317760017,3.65915868,4141.0,4140.9,0.00241375]
[1760317761219,0.5452671,4141.0,4140.9,0.00241375]
[1760317761415,3.71377607,4141.0,4140.9,0.00241375]
[1760317764036,0.5452671,4141.0,4140.9,0.00241375]
[1760317764222,0.5452671,4141.0,4140.9,3.21021375]
[1760317764927,3.70456123,4141.0,4140.9,0.00241375]
[1760317765730,0.0028671,4141.0,4140.9,0.00241375]
[1760317765929,3.2078,4141.5,4141.1,0.43427]
[1760317766232,3.2078,4141.5,4141.2,0.43425]
[1760317766428,0.5339,4141.4,4141.2,0.43425]
[1760317766626,3.2078,4141.5,4141.2,0.43425]
[1760317766827,0.5339,4141.4,4141.2,0.43425]
[1760317767227,3.21010928,4141.5,4141.2,0.43425]
[1760317767428,0.5339,4141.4,4141.2,0.43425]
[1760317767827,3.21010928,4141.5,4141.2,0.43425]
[1760317768032,0.5339,4141.4,4141.2,0.43425]
[1760317768422,0.5339,4141.1,4141.0,0.43427]
[1760317768627,0.2076,4141.2,4141.0,3.64207]
[1760317768823,0.53620928,4141.5,4141.2,0.43426]
[1760317769027,0.5339,4141.4,4141.2,0.43426]
[1760317769228,0.00230928,4141.5,4141.4,0.43424]
[1760317769521,0.5339,4141.4,4141.2,0.43426]
[1760317769722,0.00230928,4141.5,4141.3,0.43424]
[1760317770130,0.00230928,4141.5,4141.0,3.2078]
[1760317770634,0.00230928,4141.5,4141.4,0.43424]
[1760317770838,0.00230928,4141.5,4141.2,0.43425]
[1760317771134,0.5339,4141.4,4141.2,0.43425]
[1760317772133,1.17578,4141.0,4140.9,0.00241375]
[1760317772736,0.5339,4141.4,4140.9,3.21021375]
[1760317772938,0.7415,4142.0,4140.9,3.21021375]
[1760317773234,0.2076,4142.0,4141.6,3.2078]
[1760317773533,0.5339,4141.9,4141.7,0.4342]
[1760317773838,0.5339,4142.3,4142.0,0.43417]
[1760317774137,0.53675228,4142.3,4142.2,3.2078]
[1760317775037,0.9681,4141.8,4141.7,3.2078]
[1760317775228,0.9681,4141.8,4141.1,3.2078]
[1760317775229,0.5339,4141.8,4141.1,3.2078]
[1760317775434,0.5339,4141.4,4141.1,3.2078]
[1760317775632,0.5339,4141.2,4141.1,3.2078]
[1760317776333,0.5339,4141.9,4141.1,3.2078]
[1760317776532,0.43422,4141.7,4141.3,0.43425]
[1760317776942,0.96809,4141.9,4141.1,3.2078]
[1760317777238,0.2076,4142.0,4141.3,0.43424]
[1760317777239,0.4342,4141.8,4141.3,0.43424]
[1760317777438,0.4342,4141.8,4141.4,0.43424]
[1760317777839,0.43417,4142.1,4141.7,3.642]
[1760317778036,0.2076,4142.0,4141.7,3.2078]
[1760317778639,0.5339,4141.9,4141.7,3.642]
[1760317778840,0.2076,4142.0,4141.7,3.642]
[1760317779035,0.5339,4141.9,4141.7,3.642]
[1760317779438,0.2076,4142.0,4141.7,3.642]
[1760317779637,0.9681,4141.8,4141.7,3.2078]
[1760317780544,0.2076,4142.0,4141.8,0.43419]
[1760317780741,0.00285228,4142.3,4142.2,0.43416]
[1760317781044,0.5339,4143.1,4142.8,0.43409]
[1760317781338,3.17913812,4143.4,4143.0,3.2078]
[1760317781742,0.5339,4143.9,4143.0,3.2078]
[1760317781935,0.4341,4142.8,4142.5,3.2078]
[1760317782136,0.96801,4142.6,4142.5,3.2078]
[1760317782336,3.15552015,4142.7,4142.3,3.2078]
[1760317782536,0.2076,4143.0,4142.3,3.2078]
[1760317782936,0.43416,4142.2,4141.8,3.64199]
[1760317783135,0.43415,4142.3,4141.8,3.2078]
[1760317783338,0.2076,4142.5,4141.8,3.2078]
[1760317783339,0.64173,4142.5,4141.8,3.2078]
[1760317783645,0.64173,4142.5,4141.9,0.43418]
[1760317783836,0.5339,4142.4,4142.3,3.2078]
[1760317784036,3.4154,4143.0,4142.3,3.2078]
[1760317784037,0.2076,4143.0,4142.3,3.2078]
[1760317784238,0.5069,4142.8,4141.8,3.2078]
[1760317784536,1.29267,4143.5,4142.4,0.43413]
[1760317784537,3.10013714,4142.9,4142.4,0.43413]
[1760317784742,0.43404,4143.4,4142.9,0.43408]
[1760317784942,0.5069,4143.3,4142.9,0.43408]
[1760317785248,3.4154,4143.5,4142.3,3.2078]
[1760317785450,3.4154,4143.5,4142.5,0.43412]
[1760317785642,3.4154,4143.5,4142.3,3.2078]
[1760317785643,0.5069,4142.4,4142.3,3.2078]
[1760317785945,0.5069,4142.0,4141.6,3.2078]
[1760317786140,0.2032,4142.5,4142.1,0.43416]
[1760317786346,0.2032,4142.5,4141.6,3.2078]
[1760317786548,0.43415,4142.3,4141.6,3.2078]
[1760317786744,6.81095021,4142.4,4141.6,3.2078]
[1760317787045,0.5069,4142.3,4141.6,3.2078]
[1760317787242,0.43417,4142.1,4141.6,3.64201]
[1760317787438,0.43415,4142.3,4141.8,0.43419]
[1760317787643,0.5069,4142.9,4142.5,0.43412]
[1760317787844,1.14853,4143.5,4142.7,3.2078]
[1760317788149,0.5069,4143.5,4143.4,0.43403]
[1760317788449,0.5069,4143.6,4143.2,0.43404]
[1760317788642,0.5069,4143.6,4142.7,4.29306]
[1760317788643,0.43406,4143.1,4142.7,3.2078]
[1760317788847,0.2032,4143.5,4142.7,3.2078]
[1760317789045,0.2032,4143.0,4142.2,0.43415]
[1760317789346,0.2032,4143.0,4141.5,1.08557]
[1760317789347,0.43419,4141.9,4141.6,3.2078]
[1760317789546,0.43417,4142.1,4141.7,0.43421]
[1760317789744,0.2032,4142.5,4141.6,3.2078]
[1760317789745,0.4342,4141.8,4141.6,3.2078]
[1760317789946,0.5069,4141.7,4141.6,3.2078]
[1760317790153,0.5069,4141.1,4140.9,3.21021375]
[1760317790340,0.5069,4141.2,4140.9,3.21021375]
[1760317790546,0.5069,4141.1,4140.9,3.21021375]
[1760317790841,0.5069,4141.4,4141.2,0.43426]
[1760317791048,0.43415,4142.3,4141.6,0.43421]
[1760317791346,0.7101,4142.5,4141.9,3.2078]
[1760317791554,0.7101,4142.5,4142.1,0.43416]
[1760317791752,0.63733,4142.5,4141.9,3.2078]
[1760317792051,0.5299,4142.0,4141.5,0.43422]
[1760317792256,0.43418,4142.0,4141.5,0.43422]
[1760317792551,0.43418,4142.0,4141.4,3.2078]
[1760317792552,0.5299,4141.9,4141.4,3.2078]
[1760317792750,0.43418,4142.0,4141.4,3.2078]